fUST/lending_fUST_20250916
["ID","MTS","AMOUNT","RATE_DAILY","PERIOD"]
[385774241,1758031843042,-480.0,0.00021917,2]
[385774243,1758031843051,-481.02814707,0.00021917,2]
[385774245,1758031843060,-228.31772915,0.00021917,2]
[385774247,1758031843070,-448.39019703,0.00021917,2]
[385774249,1758031843079,-480.0,0.00021917,2]
[385774250,1758031843089,-480.0,0.00021917,2]
[385774253,1758031843098,-480.0,0.00021917,2]
[385774255,1758031843107,-480.0,0.00021917,2]
[385774256,1758031843116,-480.0,0.00021917,2]
[385774258,1758031843127,-500.0,0.00021917,2]
[385774260,1758031843137,-480.0,0.00021917,2]
[385774262,1758031843146,-480.0,0.00021917,2]
[385774264,1758031843155,-480.0,0.00021917,2]
[385774266,1758031843166,-480.0,0.00021917,2]
[385774269,1758031843175,-480.0,0.00021917,2]
[385774270,1758031843184,-480.0,0.00021917,2]
[385774272,1758031843193,-483.25104609,0.00021917,2]
[385774274,1758031843202,-480.0,0.00021917,2]
[385774276,1758031843211,-480.0,0.00021917,2]
[385774279,1758031843220,-480.0,0.00021917,2]
[385774282,1758031843231,-2575.53,0.00021917,2]
[385774284,1758031843242,-2575.53,0.00021917,2]
[385774287,1758031843254,-2575.53,0.00021917,2]
[385774289,1758031843265,-480.0,0.00021917,2]
[385774292,1758031843276,-2575.53,0.00021917,2]
[385774294,1758031843288,-2575.53,0.00021917,2]
[385774296,1758031843299,-2575.53,0.00021917,2]
[385774298,1758031843310,-2575.53,0.00021917,2]
[385774300,1758031843320,-2575.53,0.00021917,2]
[385774302,1758031843330,-2575.53,0.00021917,2]
[385774305,1758031843342,-2575.53,0.00021917,2]
[385774307,1758031843353,-2575.53,0.00021917,2]
[385774309,1758031843365,-480.0,0.00021917,2]
[385774311,1758031843377,-2575.53,0.00021917,2]
[385774314,1758031843389,-2575.53,0.00021917,2]
[385774316,1758031843401,-2575.53,0.00021917,2]
[385774318,1758031843412,-1071.07404326,0.00021917,2]
[385774323,1758031843444,-1504.45595674,0.00021917,2]
[385774325,1758031843456,-2575.53,0.00021917,2]
[385774327,1758031843466,-2174.71089141,0.00021917,2]
[385774329,1758031843479,-400.81910859,0.00021917,2]
[385774331,1758031843491,-2575.53,0.00021917,2]
[385774334,1758031843502,-1108.81154238,0.00021917,2]
[385774562,1758031846444,-789.31,0.00021907,10]
[385774564,1758031846455,-1466.71845762,0.00021917,2]
[385774566,1758031846468,-2575.53,0.00021917,2]
[385774568,1758031846480,-2575.53,0.00021917,2]
[385774571,1758031846493,-2575.53,0.00021917,2]
[385774573,1758031846504,-2575.53,0.00021917,2]
[385774575,1758031846516,-2575.53228387,0.00021917,2]
[385774577,1758031846526,-480.0,0.00021917,2]
[385774579,1758031846535,-480.0,0.00021917,2]
[385774581,1758031846545,-483.81684923,0.00021917,2]
[385774583,1758031846556,-509.21,0.00021917,2]
[385774585,1758031846567,-480.0,0.00021917,2]
[385774587,1758031846577,-480.0,0.00021917,2]
[385774589,1758031846589,-480.0,0.00021917,2]
[385774592,1758031846601,-482.21545096,0.00021917,2]
[385774594,1758031846611,-480.0,0.00021917,2]
[385774596,1758031846621,-480.0,0.00021917,2]
[385774598,1758031846631,-480.0,0.00021917,2]
[385774600,1758031846642,-480.0,0.00021917,2]
[385774602,1758031846652,-480.0,0.00021917,2]
[385774604,1758031846662,-480.0,0.00021917,2]
[385774606,1758031846672,-486.6615602,0.00021917,2]
[385774608,1758031846686,-480.0,0.00021917,2]
[385774610,1758031846706,-480.0,0.00021917,2]
[385774612,1758031846720,-480.0,0.00021917,2]
[385774614,1758031846730,-480.0,0.00021917,2]
[385774617,1758031846742,-480.0,0.00021917,2]
[385774619,1758031846752,-427.21839181,0.00021917,2]
[385774621,1758031846763,-483.44738823,0.00021917,2]
[385774623,1758031846774,-491.33073725,0.00021917,2]
[385774625,1758031846785,-480.0,0.00021917,2]
[385774627,1758031846795,-480.0,0.00021917,2]
[385774629,1758031846806,-480.0,0.00021917,2]
[385774631,1758031846817,-480.0,0.00021917,2]
[385774633,1758031846827,-480.0,0.00021917,2]
[385774635,1758031846837,-480.0,0.00021917,2]
[385774637,1758031846848,-480.0,0.00021917,2]
[385774639,1758031846858,-480.0,0.00021917,2]
[385774641,1758031846869,-480.0,0.00021917,2]
[385774643,1758031846883,-480.0,0.00021917,2]
[385774645,1758031846894,-480.0,0.00021917,2]
[385774648,1758031846905,-480.0,0.00021917,2]
[385774650,1758031846916,-480.0,0.00021917,2]
[385774652,1758031846928,-480.0,0.00021917,2]
[385774654,1758031846938,-480.0,0.00021917,2]
[385774656,1758031846950,-480.0,0.00021917,2]
[385774658,1758031846961,-480.0,0.00021917,2]
[385774660,1758031846971,-480.0,0.00021917,2]
[385774662,1758031846981,-480.0,0.00021917,2]
[385774664,1758031846992,-480.72462997,0.00021917,2]
[385774666,1758031847003,-480.0,0.00021917,2]
[385774668,1758031847014,-480.0,0.00021917,2]
[385774671,1758031847024,-480.0,0.00021917,2]
[385774673,1758031847034,-480.0,0.00021917,2]
[385774675,1758031847046,-314.22318645,0.00021917,2]
[385774677,1758031847056,-480.0,0.00021917,2]
[385774679,1758031847066,-480.0,0.00021917,2]
[385774681,1758031847081,-480.0,0.00021917,2]
[385774683,1758031847091,-480.0,0.00021917,2]
[385774685,1758031847101,-480.0,0.00021917,2]
[385774687,1758031847112,-480.0,0.00021917,2]
[385774689,1758031847122,-480.0,0.00021917,2]
[385774691,1758031847132,-480.0,0.00021917,2]
[385774693,1758031847142,-480.0,0.00021917,2]
[385774695,1758031847153,-480.0,0.00021917,2]
[385774697,1758031847163,-486.94268742,0.00021917,2]
[385774699,1758031847173,-480.0,0.00021917,2]
[385774701,1758031847184,-480.0,0.00021917,2]
[385774703,1758031847195,-480.0,0.00021917,2]
[385774705,1758031847205,-480.0,0.00021917,2]
[385774707,1758031847216,-480.0,0.00021917,2]
[385774709,1758031847226,-480.0,0.00021917,2]
[385774711,1758031847237,-480.0,0.00021917,2]
[385774714,1758031847249,-480.0,0.00021917,2]
[385774716,1758031847259,-483.22271226,0.00021917,2]
[385774718,1758031847269,-480.0,0.00021917,2]
[385774720,1758031847280,-480.0,0.00021917,2]
[385774722,1758031847290,-480.0,0.00021917,2]
[385774724,1758031847300,-480.0,0.00021917,2]
[385774726,1758031847311,-480.0,0.00021917,2]
[385774728,1758031847321,-480.0,0.00021917,2]
[385774730,1758031847332,-508.6724383,0.00021917,2]
[385774732,1758031847343,-480.0,0.00021917,2]
[385774734,1758031847353,-480.0,0.00021917,2]
[385774736,1758031847363,-480.0,0.00021917,2]
[385774738,1758031847372,-1743.85,0.00021917,2]
[385774740,1758031847384,-480.0,0.00021917,2]
[385774742,1758031847394,-480.0,0.00021917,2]
[385774744,1758031847403,-480.0,0.00021917,2]
[385774746,1758031847412,-480.0,0.00021917,2]
[385774748,1758031847421,-480.0,0.00021917,2]
[385774750,1758031847430,-480.0,0.00021917,2]
[385774752,1758031847440,-480.0,0.00021917,2]
[385774754,1758031847449,-480.0,0.00021917,2]
[385774755,1758031847459,-480.0,0.00021917,2]
[385774757,1758031847468,-480.0,0.00021917,2]
[385774759,1758031847478,-480.0,0.00021917,2]
[385774761,1758031847487,-480.0,0.00021917,2]
[385774763,1758031847497,-480.40297713,0.00021917,2]
[385774766,1758031847507,-480.0,0.00021917,2]
[385774768,1758031847516,-480.0,0.00021917,2]
[385774769,1758031847526,-480.0,0.00021917,2]
[385774771,1758031847535,-657.39,0.00021917,2]
[385774783,1758031847545,-480.0,0.00021917,2]
[385774784,1758031847733,-289.41986477,0.00021917,2]
[385774785,1758031847744,-480.0,0.00021917,2]
[385774786,1758031847754,-356.8862492,0.00021917,2]
[385774787,1758031847764,-480.0,0.00021917,2]
[385774788,1758031847773,-480.0,0.00021917,2]
[385774789,1758031847782,-481.32854049,0.00021917,2]
[385774790,1758031847792,-480.0,0.00021917,2]
[385774791,1758031847801,-579.01,0.00021917,2]
[385774792,1758031847811,-480.0,0.00021917,2]
[385774793,1758031847820,-480.0,0.00021917,2]
[385774794,1758031847830,-480.0,0.00021917,2]
[385774795,1758031847839,-480.0,0.00021917,2]
[385774796,1758031847848,-480.0,0.00021917,2]
[385774797,1758031847857,-480.0,0.00021917,2]
[385774798,1758031847867,-480.0,0.00021917,2]
[385774799,1758031847884,-480.0,0.00021917,2]
[385774800,1758031847893,-480.0,0.00021917,2]
[385774801,1758031847903,-480.0,0.00021917,2]
[385774802,1758031847912,-480.0,0.00021917,2]
[385774803,1758031847921,-480.0,0.00021917,2]
[385774804,1758031847930,-480.0,0.00021917,2]
[385774805,1758031847939,-515.45488724,0.00021917,2]
[385774806,1758031847948,-480.0,0.00021917,2]
[385774807,1758031847958,-480.0,0.00021917,2]
[385774808,1758031847967,-480.0,0.00021917,2]
[385774810,1758031847977,-480.0,0.00021917,2]
[385774812,1758031847987,-480.0,0.00021917,2]
[385774814,1758031847996,-480.74978191,0.00021917,2]
[385774816,1758031848006,-480.0,0.00021917,2]
[385774818,1758031848015,-480.0,0.00021917,2]
[385774820,1758031848025,-480.0,0.00021917,2]
[385774822,1758031848036,-560.4,0.00021917,2]
[385774824,1758031848045,-480.0,0.00021917,2]
[385774826,1758031848055,-480.0,0.00021917,2]
[385774828,1758031848066,-1920.36,0.00021917,2]
[385774830,1758031848076,-480.0,0.00021917,2]
[385774832,1758031848086,-480.0,0.00021917,2]
[385774834,1758031848095,-480.0,0.00021917,2]
[385774835,1758031848105,-480.0,0.00021917,2]
[385774837,1758031848114,-549.13,0.00021917,2]
[385774840,1758031848125,-480.0,0.00021917,2]
[385774841,1758031848135,-480.0,0.00021917,2]
[385774843,1758031848145,-480.0,0.00021917,2]
[385774845,1758031848154,-1717.05,0.00021917,2]
[385774847,1758031848164,-480.0,0.00021917,2]
[385774849,1758031848173,-982.0,0.00021917,2]
[385774851,1758031848182,-480.0,0.00021917,2]
[385774853,1758031848191,-480.0,0.00021917,2]
[385774855,1758031848201,-300.0,0.00021917,2]
[385774857,1758031848210,-480.0,0.00021917,2]
[385774859,1758031848220,-480.0,0.00021917,2]
[385774861,1758031848229,-480.0,0.00021917,2]
[385774863,1758031848239,-480.0,0.00021917,2]
[385774865,1758031848248,-480.0,0.00021917,2]
[385774867,1758031848257,-480.0,0.00021917,2]
[385774869,1758031848266,-486.40402788,0.00021917,2]
[385774871,1758031848275,-480.0,0.00021917,2]
[385774873,1758031848284,-480.0,0.00021917,2]
[385774875,1758031848294,-480.0,0.00021917,2]
[385774877,1758031848304,-537.33,0.00021917,2]
[385774879,1758031848314,-480.0,0.00021917,2]
[385774881,1758031848323,-481.64556267,0.00021917,2]
[385774883,1758031848332,-1136.81,0.00021917,2]
[385774885,1758031848341,-487.81,0.00021917,2]
[385774887,1758031848351,-480.0,0.00021917,2]
[385774889,1758031848360,-480.0,0.00021917,2]
[385774891,1758031848369,-480.0,0.00021917,2]
[385774893,1758031848380,-480.0,0.00021917,2]
[385774895,1758031848390,-480.0,0.00021917,2]
[385774897,1758031848399,-643.89,0.00021917,2]
[385774899,1758031848409,-480.0,0.00021917,2]
[385774901,1758031848418,-480.0,0.00021917,2]
[385774903,1758031848427,-480.0,0.00021917,2]
[385774905,1758031848436,-8539.7,0.00021917,2]
[385774907,1758031848445,-480.0,0.00021917,2]
[385774909,1758031848455,-1026.07,0.00021917,2]
[385774911,1758031848464,-1026.07,0.00021917,2]
[385774913,1758031848473,-480.0,0.00021917,2]
[385774915,1758031848483,-1026.07,0.00021917,2]
[385774917,1758031848492,-1026.07,0.00021917,2]
[385774919,1758031848502,-1026.07,0.00021917,2]
[385774921,1758031848510,-1026.07,0.00021917,2]
[385774923,1758031848520,-1026.07,0.00021917,2]
[385774924,1758031848528,-480.0,0.00021917,2]
[385774926,1758031848538,-1026.07,0.00021917,2]
[385774928,1758031848547,-1026.07,0.00021917,2]
[385774931,1758031848556,-1026.07,0.00021917,2]
[385774933,1758031848566,-1026.07,0.00021917,2]
[385774934,1758031848575,-1026.07,0.00021917,2]
[385774936,1758031848585,-480.0,0.00021917,2]
[385774938,1758031848594,-1026.07,0.00021917,2]
[385774940,1758031848603,-1026.07,0.00021917,2]
[385774942,1758031848612,-1026.07,0.00021917,2]
[385774944,1758031848621,-480.0,0.00021917,2]
[385774946,1758031848632,-1026.07,0.00021917,2]
[385774948,1758031848642,-1026.07,0.00021917,2]
[385774950,1758031848651,-1026.07,0.00021917,2]
[385774952,1758031848660,-1026.07,0.00021917,2]
[385774954,1758031848669,-480.0,0.00021917,2]
[385774956,1758031848678,-936.95,0.00021917,2]
[385774958,1758031848687,-1026.07,0.00021917,2]
[385774960,1758031848697,-1026.07,0.00021917,2]
[385774962,1758031848706,-1026.07,0.00021917,2]
[385774964,1758031848715,-1026.07,0.00021917,2]
[385774966,1758031848725,-480.0,0.00021917,2]
[385774968,1758031848734,-1026.15134703,0.00021917,2]
[385774970,1758031848744,-480.0,0.00021917,2]
[385774972,1758031848753,-480.0,0.00021917,2]
[385774974,1758031848762,-480.0,0.00021917,2]
[385774976,1758031848771,-480.0,0.00021917,2]
[385774977,1758031848781,-480.0,0.00021917,2]
[385774980,1758031848790,-480.0,0.00021917,2]
[385774981,1758031848800,-480.0,0.00021917,2]
[385774983,1758031848809,-480.0,0.00021917,2]
[385774985,1758031848818,-970.6,0.00021917,2]
[385774987,1758031848828,-2352.72,0.00021917,2]
[385774989,1758031848837,-480.0,0.00021917,2]
[385774991,1758031848847,-480.0,0.00021917,2]
[385774993,1758031848856,-480.0,0.00021917,2]
[385774995,1758031848865,-538.66,0.00021917,2]
[385774997,1758031848878,-480.0,0.00021917,2]
[385774999,1758031848887,-480.0,0.00021917,2]
[385775001,1758031848897,-480.0,0.00021917,2]
[385775003,1758031848907,-480.0,0.00021917,2]
[385775005,1758031848917,-480.0,0.00021917,2]
[385775007,1758031848927,-480.0,0.00021917,2]
[385775009,1758031848936,-480.0,0.00021917,2]
[385775010,1758031848945,-480.0,0.00021917,2]
[385775012,1758031848955,-480.0,0.00021917,2]
[385775014,1758031848965,-480.0,0.00021917,2]
[385775016,1758031848975,-485.69219905,0.00021917,2]
[385775018,1758031848984,-480.0,0.00021917,2]
[385775020,1758031848994,-480.0,0.00021917,2]
[385775022,1758031849003,-480.0,0.00021917,2]
[385775024,1758031849013,-480.0,0.00021917,2]
[385775026,1758031849022,-480.0,0.00021917,2]
[385775028,1758031849031,-480.0,0.00021917,2]
[385775030,1758031849041,-480.0,0.00021917,2]
[385775032,1758031849050,-480.0,0.00021917,2]
[385775034,1758031849060,-480.0,0.00021917,2]
[385775036,1758031849070,-480.0,0.00021917,2]
[385775038,1758031849079,-480.0,0.00021917,2]
[385775040,1758031849089,-480.0,0.00021917,2]
[385775042,1758031849098,-480.0,0.00021917,2]
[385775044,1758031849107,-480.0,0.00021917,2]
[385775046,1758031849117,-480.0,0.00021917,2]
[385775048,1758031849127,-480.0,0.00021917,2]
[385775050,1758031849136,-481.69628703,0.00021917,2]
[385775051,1758031849145,-480.0,0.00021917,2]
[385775053,1758031849155,-480.0,0.00021917,2]
[385775055,1758031849164,-482.45576023,0.00021917,2]
[385775057,1758031849173,-480.0,0.00021917,2]
[385775059,1758031849182,-480.0,0.00021917,2]
[385775061,1758031849192,-482.9669786,0.00021917,2]
[385775063,1758031849201,-480.0,0.00021917,2]
[385775065,1758031849210,-480.0,0.00021917,2]
[385775067,1758031849219,-484.0279248,0.00021917,2]
[385775069,1758031849228,-480.0,0.00021917,2]
[385775071,1758031849237,-451.93812905,0.00021917,2]
[385775073,1758031849247,-480.0,0.00021917,2]
[385775075,1758031849256,-480.0,0.00021917,2]
[385775077,1758031849265,-480.0,0.00021917,2]
[385775079,1758031849274,-4255.74,0.00021917,2]
[385775081,1758031849283,-480.0,0.00021917,2]
[385775083,1758031849293,-770.7,0.00021917,2]
[385775085,1758031849302,-480.0,0.00021917,2]
[385775087,1758031849311,-480.0,0.00021917,2]
[385775089,1758031849320,-480.0,0.00021917,2]
[385775091,1758031849330,-480.0,0.00021917,2]
[385775093,1758031849339,-480.0,0.00021917,2]
[385775095,1758031849347,-483.9065606,0.00021917,2]
[385775097,1758031849356,-480.0,0.00021917,2]
[385775099,1758031849366,-480.0,0.00021917,2]
[385775101,1758031849376,-480.0,0.00021917,2]
[385775103,1758031849385,-480.0,0.00021917,2]
[385775105,1758031849395,-483.45863212,0.00021917,2]
[385775107,1758031849404,-482.93123715,0.00021917,2]
[385775109,1758031849413,-480.0,0.00021917,2]
[385775111,1758031849422,-480.0,0.00021917,2]
[385775113,1758031849431,-480.0,0.00021917,2]
[385775115,1758031849440,-480.0,0.00021917,2]
[385775117,1758031849449,-480.0,0.00021917,2]
[385775119,1758031849458,-841.62,0.00021917,2]
[385775121,1758031849467,-485.9066395,0.00021917,2]
[385775123,1758031849476,-480.0,0.00021917,2]
[385775125,1758031849486,-296.42896068,0.00021917,2]
[385775127,1758031849495,-730.56,0.00021917,2]
[385775128,1758031849504,-766.4,0.00021917,2]
[385775130,1758031849514,-480.0,0.00021917,2]
[385775132,1758031849523,-1659.63,0.00021917,2]
[385775134,1758031849532,-530.53342362,0.00021917,2]
[385775136,1758031849541,-480.0,0.00021917,2]
[385775139,1758031849551,-480.0,0.00021917,2]
[385775140,1758031849560,-480.0,0.00021917,2]
[385775142,1758031849569,-480.0,0.00021917,2]
[385775144,1758031849579,-480.0,0.00021917,2]
[385775146,1758031849588,-480.0,0.00021917,2]
[385775148,1758031849597,-168.64862636,0.00021917,2]
[385775150,1758031849606,-679.31,0.00021917,2]
[385775152,1758031849615,-480.0,0.00021917,2]
[385775154,1758031849624,-480.0,0.00021917,2]
[385775156,1758031849634,-506.02418976,0.00021917,2]
[385775158,1758031849643,-480.0,0.00021917,2]
[385775160,1758031849653,-480.75577932,0.00021917,2]
[385775162,1758031849662,-480.0,0.00021917,2]
[385775164,1758031849671,-480.0,0.00021917,2]
[385775166,1758031849680,-480.0,0.00021917,2]
[385775168,1758031849689,-480.0,0.00021917,2]
[385775170,1758031849699,-158.92171112,0.00021917,2]
[385775172,1758031849708,-480.0,0.00021917,2]
[385775174,1758031849717,-480.0,0.00021917,2]
[385775176,1758031849726,-719.81,0.00021917,2]
[385775178,1758031849736,-480.0,0.00021917,2]
[385775180,1758031849745,-480.0,0.00021917,2]
[385775182,1758031849755,-480.0,0.00021917,2]
[385775184,1758031849764,-480.0,0.00021917,2]
[385775186,1758031849774,-480.0,0.00021917,2]
[385775188,1758031849783,-480.0,0.00021917,2]
[385775190,1758031849792,-480.0,0.00021917,2]
[385775192,1758031849803,-1120.54,0.00021917,2]
[385775194,1758031849812,-480.0,0.00021917,2]
[385775196,1758031849821,-480.0,0.00021917,2]
[385775198,1758031849830,-480.0,0.00021917,2]
[385775200,1758031849840,-480.0,0.00021917,2]
[385775202,1758031849849,-484.30541468,0.00021917,2]
[385775204,1758031849859,-151.0,0.00021917,2]
[385775206,1758031849868,-480.0,0.00021917,2]
[385775208,1758031849881,-151.0,0.00021917,2]
[385775210,1758031849891,-300.0,0.00021922,20]
[385775212,1758031849901,-300.0,0.00021922,20]
[385775214,1758031849911,-300.0,0.00021932,20]
[385775216,1758031849920,-500.0,0.00021973,2]
[385775218,1758031849929,-500.0,0.00021973,2]
[385775220,1758031849939,-500.0,0.00021973,2]
[385775222,1758031849948,-315.44323192,0.00021973,2]
[385775224,1758031849958,-500.0,0.00021973,2]
[385775226,1758031849967,-500.0,0.00021973,2]
[385775228,1758031849977,-500.0,0.00021973,2]
[385775230,1758031849987,-500.0,0.00021973,2]
[385775232,1758031849996,-159.24064273,0.00021973,2]
[385775234,1758031850006,-500.0,0.00021973,2]
[385775236,1758031850015,-319.72775656,0.00021973,2]
[385775238,1758031850024,-500.0,0.00021973,2]
[385775240,1758031850034,-500.0,0.00021973,2]
[385775242,1758031850044,-500.0,0.00021973,2]
[385775244,1758031850054,-500.0,0.00021973,2]
[385775246,1758031850063,-507.38026012,0.00021973,2]
[385775248,1758031850073,-500.0,0.00021973,2]
[385775250,1758031850082,-500.0,0.00021973,2]
[385775253,1758031850092,-502.28732597,0.00021973,2]
[385775254,1758031850101,-500.0,0.00021973,2]
[385775256,1758031850111,-500.0,0.00021973,2]
[385775259,1758031850120,-501.64757414,0.00021973,2]
[385775261,1758031850132,-501.78976463,0.00021973,2]
[385775262,1758031850141,-163.8894747,0.00021973,2]
[385775264,1758031850151,-500.0,0.00021973,2]
[385775267,1758031850161,-502.42639181,0.00021973,2]
[385775269,1758031850170,-500.0,0.00021973,2]
[385775270,1758031850180,-502.04640876,0.00021973,2]
[385775273,1758031850190,-500.0,0.00021973,2]
[385775274,1758031850199,-500.0,0.00021973,2]
[385775277,1758031850209,-500.0,0.00021973,2]
[385775279,1758031850219,-254.16180757,0.00021996,2]
[385775280,1758031850229,-821.25,0.00022,7]
[385775283,1758031850239,-35640.49,0.00022,7]
[385775284,1758031850248,-21682.69907858,0.00022,2]
[385775372,1758031851153,-2008.54092142,0.00022,2]
[385775374,1758031851163,-160.0,0.00022,7]
[385775376,1758031851172,-539.24311429,0.00022121,2]
[385775378,1758031851181,-377.66485435,0.00022121,2]
[385775380,1758031851191,-1000.0,0.00022121,2]
[385775382,1758031851200,-1000.0,0.00022121,2]
[385775384,1758031851209,-1000.0,0.00022121,2]
[385775386,1758031851218,-1000.0,0.00022121,2]
[385775388,1758031851227,-500.0,0.00022121,2]
[385775390,1758031851236,-1000.0,0.00022121,2]
[385775392,1758031851246,-1000.0,0.00022121,2]
[385775394,1758031851255,-1000.0,0.00022121,2]
[385775396,1758031851265,-452.14900759,0.00022191,3]
[385775398,1758031851274,-480.94301996,0.00022191,3]
[385775400,1758031851283,-480.0,0.00022191,3]
[385775402,1758031851292,-480.0,0.00022191,3]
[385775404,1758031851301,-480.0,0.00022191,3]
[385775406,1758031851311,-480.0,0.00022191,3]
[385775408,1758031851320,-480.0,0.00022191,3]
[385775410,1758031851329,-480.0,0.00022191,3]
[385775412,1758031851338,-480.0,0.00022191,3]
[385775414,1758031851348,-480.0,0.00022191,3]
[385775416,1758031851357,-480.0,0.00022191,3]
[385775418,1758031851367,-480.0,0.00022191,3]
[385775420,1758031851377,-480.0,0.00022191,3]
[385775422,1758031851386,-480.0,0.00022191,3]
[385775424,1758031851395,-480.0,0.00022191,3]
[385775426,1758031851404,-480.0,0.00022191,3]
[385775428,1758031851414,-480.0,0.00022191,3]
[385775430,1758031851423,-480.0,0.00022191,3]
[385775432,1758031851432,-480.0,0.00022191,3]
[385775434,1758031851441,-480.0,0.00022191,3]
[385775436,1758031851451,-480.0,0.00022191,3]
[385775438,1758031851461,-29.29942386,0.00022191,3]
[385775811,1758031904101,780.39535193,0.000199,2]
[385775812,1758032073255,-165.7745662,0.00020538,2]
[385775823,1758032076670,-4.3798528,0.00020538,2]
[385775824,1758032093166,805.04582446,0.000199,2]
[385775825,1758032276489,826.99547776,0.000199,2]
[385775829,1758032291681,176.364592,0.00020418,2]
[385775831,1758032394466,-2259.1881018,0.00021049,2]
[385775832,1758032394554,-129.66938629,0.00021049,2]
[385775835,1758032422451,-4648.04558989,0.00021049,2]
[385775836,1758032422476,-703.91882022,0.00021049,2]
[385775837,1758032458935,846.58732531,0.000199,2]
[385775838,1758032468182,161.51916652,0.0002,2]
[385775841,1758032515897,203.826236,0.00020395,2]
[385775849,1758032583436,8788.07727217,0.00020395,2]
[385775850,1758032583461,1211.92272783,0.00020395,2]
[385775851,1758032640299,862.38197354,0.000199,2]
[385775855,1758032808136,-5000.0,0.00020938,2]
[385775856,1758032808459,-7925.71529863,0.00021,2]
[385775857,1758032808566,-10000.01,0.00021,2]
[385775858,1758032808769,-10000.01,0.00021,2]
[385775859,1758032808915,-10000.01,0.00021,2]
[385775860,1758032809049,-10000.01,0.00021,2]
[385775861,1758032809198,-10000.01,0.00021,2]
[385775862,1758032809321,-10000.01,0.00021,2]
[385775863,1758032818121,-10000.01,0.00021,2]
[385775864,1758032822179,965.85973422,0.000199,2]
[385775865,1758032850243,-5000.0,0.0002079,2]
[385775866,1758032850280,-0.01,0.00020999,2]
[385775871,1758032889192,666.0,0.00020384,2]
[385775877,1758032920967,-476.80758807,0.0002061,2]
[385775878,1758032926082,-254.68325408,0.0002061,2]
[385775879,1758032927850,-393.72357633,0.0002061,2]
[385775887,1758032931157,-123.54308297,0.0002061,2]
[385775888,1758032950443,-399.10789269,0.000209,2]
[385775889,1758032950480,-1199.99,0.00020999,2]
[385775890,1758032950599,-6135.81421462,0.00021,2]
[385775891,1758032950637,-996.47767413,0.00021,2]
[385775892,1758032950677,-965.85973397,0.00021149,2]
[385775893,1758032950712,-300.0,0.00021178,2]
[385775894,1758032950797,-5475.3351838,0.00021179,2]
[385775895,1758032950835,-10000.01,0.00021179,2]
[385775896,1758032950877,-10000.01,0.00021179,2]
[385775897,1758033003745,901.46908529,0.000199,2]
[385775931,1758033032657,-901.46908503,0.00021149,2]
[385775934,1758033032667,-7718.2712654,0.00021179,2]
[385775937,1758033032676,-216.78097938,0.00021371,2]
[385775939,1758033032687,-307.60290076,0.00021371,2]
[385775943,1758033032763,-675.61611986,0.00021371,2]
[385775944,1758033032773,-300.0,0.00021372,2]
[385775945,1758033032782,-300.0,0.00021372,2]
[385775946,1758033032792,-300.0,0.00021372,2]
[385775947,1758033032801,-692.93468589,0.00021373,2]
[385775948,1758033032811,-3320.78552184,0.00021373,2]